fUST/lending_fUST_20250725
["ID","MTS","AMOUNT","RATE_DAILY","PERIOD"]
[374774354,1753439439883,-460.0,0.00019178,2]
[374774356,1753439439892,-460.0,0.00019178,2]
[374774377,1753439440074,-460.0,0.00019178,2]
[374774379,1753439440086,-460.0,0.00019178,2]
[374774381,1753439440097,-460.0,0.00019178,2]
[374774383,1753439440108,-460.0,0.00019178,2]
[374774385,1753439440117,-460.0,0.00019178,2]
[374774387,1753439440126,-460.0,0.00019178,2]
[374774389,1753439440136,-462.65942288,0.00019178,2]
[374774391,1753439440146,-489.67,0.00019178,2]
[374774393,1753439440156,-460.0,0.00019178,2]
[374774396,1753439440165,-460.0,0.00019178,2]
[374774398,1753439440175,-460.0,0.00019178,2]
[374774400,1753439440184,-569.44219641,0.00019178,2]
[374774402,1753439440194,-460.0,0.00019178,2]
[374774404,1753439440203,-460.0,0.00019178,2]
[374774406,1753439440212,-403.87486761,0.00019178,2]
[374774408,1753439440222,-460.0,0.00019178,2]
[374774410,1753439440232,-460.0,0.00019178,2]
[374774412,1753439440241,-460.0,0.00019178,2]
[374774414,1753439440251,-460.0,0.00019178,2]
[374774416,1753439440260,-460.0,0.00019178,2]
[374774418,1753439440269,-460.0,0.00019178,2]
[374774420,1753439440278,-460.0,0.00019178,2]
[374774422,1753439440288,-460.0,0.00019178,2]
[374774424,1753439440298,-460.0,0.00019178,2]
[374774426,1753439440307,-460.0,0.00019178,2]
[374774428,1753439440316,-460.0,0.00019178,2]
[374774430,1753439440325,-470.71106011,0.00019178,2]
[374774432,1753439440335,-460.0,0.00019178,2]
[374774434,1753439440344,-460.0,0.00019178,2]
[374774436,1753439440354,-460.0,0.00019178,2]
[374774438,1753439440363,-460.0,0.00019178,2]
[374774440,1753439440372,-590.43,0.00019178,2]
[374774442,1753439440381,-460.0,0.00019178,2]
[374774444,1753439440390,-460.0,0.00019178,2]
[374774446,1753439440400,-460.0,0.00019178,2]
[374774448,1753439440409,-460.0,0.00019178,2]
[374774450,1753439440418,-460.0,0.00019178,2]
[374774452,1753439440427,-460.0,0.00019178,2]
[374774454,1753439440437,-460.0,0.00019178,2]
[374774456,1753439440446,-460.0,0.00019178,2]
[374774458,1753439440455,-460.0,0.00019178,2]
[374774460,1753439440464,-460.0,0.00019178,2]
[374774462,1753439440475,-460.0,0.00019178,2]
[374774464,1753439440484,-460.0,0.00019178,2]
[374774466,1753439440493,-498.33,0.00019178,2]
[374774468,1753439440504,-460.0,0.00019178,2]
[374774470,1753439440513,-460.0,0.00019178,2]
[374774472,1753439440523,-180.87087454,0.00019178,2]
[374774474,1753439440533,-460.60415519,0.00019178,2]
[374774476,1753439440542,-460.0,0.00019178,2]
[374774478,1753439440552,-460.0,0.00019178,2]
[374774480,1753439440561,-460.0,0.00019178,2]
[374774483,1753439440571,-460.0,0.00019178,2]
[374774485,1753439440581,-460.0,0.00019178,2]
[374774487,1753439440591,-460.0,0.00019178,2]
[374774489,1753439440600,-460.0,0.00019178,2]
[374774491,1753439440610,-460.0,0.00019178,2]
[374774493,1753439440619,-460.0,0.00019178,2]
[374774495,1753439440629,-460.0,0.00019178,2]
[374774497,1753439440638,-500.0,0.00019178,2]
[374774499,1753439440647,-460.0,0.00019178,2]
[374774501,1753439440656,-460.0,0.00019178,2]
[374774503,1753439440666,-460.0,0.00019178,2]
[374774505,1753439440675,-460.0,0.00019178,2]
[374774507,1753439440685,-460.0,0.00019178,2]
[374774509,1753439440694,-460.0,0.00019178,2]
[374774511,1753439440704,-460.0,0.00019178,2]
[374774513,1753439440713,-460.0,0.00019178,2]
[374774515,1753439440724,-460.0,0.00019178,2]
[374774517,1753439440734,-460.0,0.00019178,2]
[374774519,1753439440744,-460.0,0.00019178,2]
[374774521,1753439440754,-460.0,0.00019178,2]
[374774523,1753439440763,-460.0,0.00019178,2]
[374774526,1753439440776,-460.0,0.00019178,2]
[374774528,1753439440786,-462.97660868,0.00019178,2]
[374774530,1753439440795,-460.0,0.00019178,2]
[374774532,1753439440804,-460.0,0.00019178,2]
[374774534,1753439440814,-460.0,0.00019178,2]
[374774536,1753439440823,-460.0,0.00019178,2]
[374774538,1753439440832,-460.0,0.00019178,2]
[374774540,1753439440841,-515.50820977,0.00019178,2]
[374774542,1753439440851,-460.0,0.00019178,2]
[374774544,1753439440860,-460.0,0.00019178,2]
[374774546,1753439440870,-460.0,0.00019178,2]
[374774548,1753439440879,-500.0,0.00019178,2]
[374774550,1753439440889,-453.73845994,0.00019178,2]
[374774552,1753439440898,-460.0,0.00019178,2]
[374774554,1753439440908,-460.0,0.00019178,2]
[374774556,1753439440917,-485.84,0.00019178,2]
[374774558,1753439440927,-591.95931139,0.00019178,2]
[374774560,1753439440938,-460.0,0.00019178,2]
[374774562,1753439440947,-500.0,0.00019178,2]
[374774564,1753439440956,-500.0,0.00019178,2]
[374774566,1753439440966,-500.0,0.00019178,2]
[374774568,1753439440975,-460.49462834,0.00019178,2]
[374774570,1753439440984,-500.0,0.00019178,2]
[374774572,1753439440993,-500.0,0.00019178,2]
[374774574,1753439441003,-460.0,0.00019178,2]
[374774576,1753439441015,-500.0,0.00019178,2]
[374774578,1753439441025,-500.0,0.00019178,2]
[374774580,1753439441034,-500.0,0.00019178,2]
[374774582,1753439441043,-500.0,0.00019178,2]
[374774584,1753439441053,-460.0,0.00019178,2]
[374774586,1753439441063,-500.0,0.00019178,2]
[374774588,1753439441072,-500.0,0.00019178,2]
[374774590,1753439441082,-500.0,0.00019178,2]
[374774593,1753439441093,-460.0,0.00019178,2]
[374774595,1753439441103,-500.0,0.00019178,2]
[374774597,1753439441113,-500.0,0.00019178,2]
[374774599,1753439441122,-500.0,0.00019178,2]
[374774601,1753439441131,-460.0,0.00019178,2]
[374774603,1753439441141,-500.0,0.00019178,2]
[374774605,1753439441150,-500.0,0.00019178,2]
[374774607,1753439441159,-500.0,0.00019178,2]
[374774609,1753439441168,-178.82,0.00019178,2]
[374774611,1753439441177,-966.83244744,0.00019178,2]
[374774613,1753439441187,-460.0,0.00019178,2]
[374774615,1753439441196,-460.0,0.00019178,2]
[374774617,1753439441206,-460.0,0.00019178,2]
[374774619,1753439441215,-460.0,0.00019178,2]
[374774621,1753439441228,-460.0,0.00019178,2]
[374774623,1753439441237,-460.0,0.00019178,2]
[374774625,1753439441247,-460.0,0.00019178,2]
[374774627,1753439441256,-475.82941195,0.00019178,2]
[374774629,1753439441265,-460.0,0.00019178,2]
[374774631,1753439441275,-451.63635953,0.00019178,2]
[374774633,1753439441286,-460.0,0.00019178,2]
[374774635,1753439441295,-460.0,0.00019178,2]
[374774637,1753439441305,-460.0,0.00019178,2]
[374774639,1753439441314,-460.0,0.00019178,2]
[374774641,1753439441324,-460.0,0.00019178,2]
[374774643,1753439441334,-464.75648424,0.00019178,2]
[374774645,1753439441343,-460.0,0.00019178,2]
[374774647,1753439441353,-460.0,0.00019178,2]
[374774649,1753439441362,-460.0,0.00019178,2]
[374774651,1753439441371,-460.0,0.00019178,2]
[374774653,1753439441380,-460.0,0.00019178,2]
[374774655,1753439441390,-460.0,0.00019178,2]
[374774657,1753439441399,-460.0,0.00019178,2]
[374774659,1753439441409,-460.0,0.00019178,2]
[374774661,1753439441418,-460.0,0.00019178,2]
[374774663,1753439441428,-460.0,0.00019178,2]
[374774665,1753439441437,-460.0,0.00019178,2]
[374774667,1753439441447,-460.0,0.00019178,2]
[374774669,1753439441456,-460.0,0.00019178,2]
[374774671,1753439441466,-460.0,0.00019178,2]
[374774674,1753439441477,-460.0,0.00019178,2]
[374774676,1753439441487,-460.0,0.00019178,2]
[374774677,1753439441497,-460.0,0.00019178,2]
[374774680,1753439441506,-460.0,0.00019178,2]
[374774682,1753439441515,-460.0,0.00019178,2]
[374774684,1753439441525,-179.14599439,0.00019178,2]
[374774685,1753439441535,-460.0,0.00019178,2]
[374774687,1753439441545,-460.0,0.00019178,2]
[374774690,1753439441555,-460.0,0.00019178,2]
[374774692,1753439441564,-460.0,0.00019178,2]
[374774693,1753439441573,-460.0,0.00019178,2]
[374774696,1753439441584,-460.0,0.00019178,2]
[374774698,1753439441594,-460.0,0.00019178,2]
[374774700,1753439441604,-460.0,0.00019178,2]
[374774702,1753439441613,-460.0,0.00019178,2]
[374774704,1753439441623,-460.0,0.00019178,2]
[374774706,1753439441633,-461.84116932,0.00019178,2]
[374774708,1753439441643,-460.0,0.00019178,2]
[374774710,1753439441652,-465.35226107,0.00019178,2]
[374774712,1753439441662,-460.0,0.00019178,2]
[374774714,1753439441672,-558.29635366,0.00019178,2]
[374774716,1753439441681,-460.0,0.00019178,2]
[374774718,1753439441691,-402.99399699,0.00019178,2]
[374774720,1753439441700,-460.0,0.00019178,2]
[374774722,1753439441710,-460.0,0.00019178,2]
[374774724,1753439441720,-460.0,0.00019178,2]
[374774726,1753439441731,-460.0,0.00019178,2]
[374774728,1753439441741,-460.0,0.00019178,2]
[374774730,1753439441750,-460.0,0.00019178,2]
[374774732,1753439441759,-460.0,0.00019178,2]
[374774734,1753439441768,-460.0,0.00019178,2]
[374774736,1753439441778,-460.0,0.00019178,2]
[374774738,1753439441788,-460.0,0.00019178,2]
[374774741,1753439441798,-460.0,0.00019178,2]
[374774742,1753439441807,-460.0,0.00019178,2]
[374774743,1753439441816,-460.0,0.00019178,2]
[374774744,1753439441826,-460.0,0.00019178,2]
[374774745,1753439441835,-460.0,0.00019178,2]
[374774746,1753439441845,-460.0,0.00019178,2]
[374774747,1753439441854,-460.0,0.00019178,2]
[374774748,1753439441863,-460.0,0.00019178,2]
[374774749,1753439441872,-460.0,0.00019178,2]
[374774750,1753439441881,-462.10861502,0.00019178,2]
[374774751,1753439441890,-460.0,0.00019178,2]
[374774752,1753439441899,-460.0,0.00019178,2]
[374774753,1753439441908,-460.0,0.00019178,2]
[374774755,1753439441918,-460.0,0.00019178,2]
[374774757,1753439441927,-460.0,0.00019178,2]
[374774759,1753439441937,-151.0,0.00019178,2]
[374774761,1753439441946,-500.0,0.00019178,2]
[374774763,1753439441956,-5000.0,0.00019178,2]
[374774765,1753439441966,-2686.04674273,0.00019178,2]
[374774767,1753439441976,-184.383146,0.00019178,2]
[374774769,1753439441986,-500.0,0.0001922,2]
[374774771,1753439441996,-256.82713651,0.00019233,2]
[374774773,1753439442005,-500.0,0.00019267,2]
[374774775,1753439442020,-500.0,0.00019267,2]
[374774777,1753439442030,-413.41516852,0.00019329,2]
[374774779,1753439442039,-500.0,0.00019379,2]
[374774781,1753439442051,-500.0,0.00019379,2]
[374774783,1753439442060,-500.0,0.00019451,2]
[374774785,1753439442070,-460.0,0.00019452,2]
[374774787,1753439442080,-1482.51,0.00019452,2]
[374774789,1753439442091,-460.0,0.00019452,2]
[374774791,1753439442102,-774.55,0.00019452,2]
[374774793,1753439442111,-460.0,0.00019452,2]
[374774795,1753439442121,-253.04,0.00019452,2]
[374774797,1753439442130,-489.67,0.00019452,2]
[374774800,1753439442147,-594.45,0.00019452,2]
[374774803,1753439442160,-460.0,0.00019452,2]
[374774805,1753439442170,-590.54,0.00019452,2]
[374774806,1753439442179,-460.0,0.00019452,2]
[374774809,1753439442190,-460.0,0.00019452,2]
[374774811,1753439442200,-183.39821403,0.00019452,2]
[374774813,1753439442210,-424.23,0.00019452,2]
[374774815,1753439442219,-460.0,0.00019452,2]
[374774817,1753439442230,-460.0,0.00019452,2]
[374774819,1753439442241,-460.0,0.00019452,2]
[374774821,1753439442250,-460.0,0.00019452,2]
[374774823,1753439442260,-460.0,0.00019452,2]
[374774825,1753439442270,-460.0,0.00019452,2]
[374774827,1753439442281,-460.0,0.00019452,2]
[374774829,1753439442291,-463.19157267,0.00019452,2]
[374774831,1753439442301,-463.29544087,0.00019452,2]
[374774833,1753439442310,-460.0,0.00019452,2]
[374774835,1753439442320,-463.48559837,0.00019452,2]
[374774838,1753439442330,-460.0,0.00019452,2]
[374774840,1753439442339,-460.0,0.00019452,2]
[374774842,1753439442350,-460.0,0.00019452,2]
[374774844,1753439442359,-460.0,0.00019452,2]
[374774846,1753439442369,-460.0,0.00019452,2]
[374774848,1753439442379,-460.0,0.00019452,2]
[374774850,1753439442389,-460.0,0.00019452,2]
[374774852,1753439442399,-460.0,0.00019452,2]
[374774855,1753439442409,-460.0,0.00019452,2]
[374774857,1753439442419,-460.0,0.00019452,2]
[374774860,1753439442429,-460.0,0.00019452,2]
[374774863,1753439442438,-460.0,0.00019452,2]
[374774866,1753439442449,-217.75396734,0.00019452,2]
[374774868,1753439442459,-460.0,0.00019452,2]
[374774871,1753439442469,-519.8,0.00019452,2]
[374774873,1753439442480,-460.0,0.00019452,2]
[374774875,1753439442490,-460.0,0.00019452,2]
[374774877,1753439442500,-460.0,0.00019452,2]
[374774879,1753439442509,-460.0,0.00019452,2]
[374774881,1753439442519,-460.0,0.00019452,2]
[374774883,1753439442528,-199.87038357,0.00019452,2]
[374774885,1753439442538,-460.0,0.00019452,2]
[374774888,1753439442548,-460.0,0.00019452,2]
[374774890,1753439442557,-460.0,0.00019452,2]
[374774892,1753439442566,-460.0,0.00019452,2]
[374774894,1753439442576,-538.86,0.00019452,2]
[374774896,1753439442586,-460.0,0.00019452,2]
[374774898,1753439442595,-420.0,0.00019502,2]
[374774900,1753439442605,-302.82,0.00019552,2]
[374774902,1753439442614,-1024.23450938,0.00019721,2]
[374774904,1753439442625,-510.08324711,0.00019721,2]
[374774906,1753439442634,-1482.51,0.00019726,2]
[374774908,1753439442644,-460.0,0.00019726,2]
[374774910,1753439442654,-774.55,0.00019726,2]
[374774912,1753439442663,-460.0,0.00019726,2]
[374774914,1753439442672,-489.67,0.00019726,2]
[374774916,1753439442682,-460.0,0.00019726,2]
[374774918,1753439442692,-476.32,0.00019726,2]
[374774920,1753439442702,-451.54,0.00019726,2]
[374774922,1753439442712,-460.0,0.00019726,2]
[374774924,1753439442721,-210.89,0.00019726,2]
[374774926,1753439442733,-460.0,0.00019726,2]
[374774928,1753439442742,-460.0,0.00019726,2]
[374774930,1753439442753,-460.0,0.00019726,2]
[374774932,1753439442762,-460.0,0.00019726,2]
[374774934,1753439442772,-727.45970046,0.00019904,2]
[374774936,1753439442782,-152.98367975,0.0002,2]
[374774938,1753439442791,-1482.51,0.0002,2]
[374774940,1753439442801,-460.0,0.0002,2]
[374774942,1753439442810,-774.55,0.0002,2]
[374774944,1753439442820,-325.5,0.0002,2]
[374774946,1753439442830,-489.67,0.0002,2]
[374774948,1753439442839,-372.06,0.0002,2]
[374774950,1753439442849,-460.0,0.0002,2]
[374774952,1753439442859,-460.0,0.0002,2]
[374774954,1753439442869,-460.0,0.0002,2]
[374774956,1753439442878,-460.0,0.0002,2]
[374774958,1753439442887,-460.0,0.0002,2]
[374774960,1753439442897,-304.238794,0.00020187,2]
[374774962,1753439442906,-1482.51,0.00020273,2]
[374774964,1753439442915,-370.59,0.00020273,2]
[374774966,1753439442925,-774.55,0.00020273,2]
[374774968,1753439442934,-489.67,0.00020273,2]
[374774970,1753439442944,-269.27,0.00020273,2]
[374774985,1753439443086,-460.0,0.00020273,2]
[374774987,1753439443097,-460.0,0.00020273,2]
[374774989,1753439443107,-460.0,0.00020273,2]
[374774991,1753439443117,-176.82,0.00020273,2]
[374774993,1753439443127,-605.65,0.00020483,2]
[374774995,1753439443137,-223.0315306,0.00020516,2]
[374774997,1753439443147,-1598.44531373,0.00020531,2]
[374774999,1753439443157,-1482.51,0.00020547,2]
[374775001,1753439443167,-774.55,0.00020547,2]
[374775004,1753439443182,-489.67,0.00020547,2]
[374775006,1753439443191,-460.0,0.00020547,2]
[374775008,1753439443201,-460.0,0.00020547,2]
[374775010,1753439443211,-460.0,0.00020547,2]
[374775012,1753439443221,-727.45970046,0.00020729,2]
[374775014,1753439443231,-5000.0,0.00020801,2]
[374775016,1753439443240,-1482.51,0.00020821,2]
[374775018,1753439443249,-774.55,0.00020821,2]
[374775020,1753439443259,-489.67,0.00020821,2]
[374775022,1753439443269,-460.0,0.00020821,2]
[374775024,1753439443278,-460.0,0.00020821,2]
[374775026,1753439443287,-460.0,0.00020821,2]
[374775028,1753439443297,-207.2232168,0.00020986,2]
[374775030,1753439443307,-1482.51,0.00021095,2]
[374775032,1753439443316,-774.55,0.00021095,2]
[374775034,1753439443326,-489.67,0.00021095,2]
[374775036,1753439443335,-460.0,0.00021095,2]
[374775038,1753439443345,-460.0,0.00021095,2]
[374775040,1753439443354,-460.0,0.00021095,2]
[374775042,1753439443363,-389.797,0.00021243,2]
[374775043,1753439443373,-587.0,0.00021282,2]
[374775045,1753439443383,-1482.51,0.00021369,2]
[374775047,1753439443392,-774.55,0.00021369,2]
[374775049,1753439443402,-489.67,0.00021369,2]
[374775051,1753439443411,-563.31,0.00021369,2]
[374775053,1753439443421,-460.0,0.00021369,2]
[374775055,1753439443431,-460.0,0.00021369,2]
[374775057,1753439443441,-3191.46146358,0.00021414,2]
[374775059,1753439443451,-908.47,0.00021414,2]
[374775061,1753439443460,-2219.31768029,0.000215,2]
[374775063,1753439443470,-727.45970046,0.00021555,2]
[374775065,1753439443481,-1482.51,0.00021643,2]
[374775068,1753439443492,-774.55,0.00021643,2]
[374775070,1753439443502,-489.67,0.00021643,2]
[374775072,1753439443511,-460.0,0.00021643,2]
[374775073,1753439443521,-460.0,0.00021643,2]
[374775076,1753439443531,-3191.46146358,0.00021729,2]
[374775077,1753439443540,-2157.0,0.00021754,2]
[374775079,1753439443549,-969.0,0.00021754,2]
[374775081,1753439443559,-407.0,0.00021754,2]
[374775084,1753439443569,-421.487,0.00021754,2]
[374775086,1753439443579,-180.3711251,0.00021808,2]
[374775088,1753439443589,-997.0312213,0.00021808,2]
[374775090,1753439443598,-178.3051933,0.00021808,2]
[374775091,1753439443608,-178.3051933,0.00021808,2]
[374775094,1753439443618,-231.28369723,0.00021885,2]
[374775096,1753439443628,-17886.15084021,0.000219,3]
[374775098,1753439443638,-152.793937,0.00021915,3]
[374775100,1753439443648,-1482.51,0.00021917,2]
[374775102,1753439443657,-774.55,0.00021917,2]
[374775104,1753439443667,-489.67,0.00021917,2]
[374775106,1753439443676,-223.06,0.00021917,2]
[374775108,1753439443686,-460.0,0.00021917,2]
[374775110,1753439443695,-150.27717762,0.00021918,2]
[374775112,1753439443705,-151.0,0.0002193,7]
[374775113,1753439443716,-151.0,0.0002193,7]
[374775116,1753439443728,-139192.82726652,0.0002193,2]
[374775117,1753439443738,-229.0,0.00021964,2]
[374775119,1753439443748,-229.0,0.00021977,2]
[374775121,1753439443757,-160.78433941,0.00021984,2]
[374775123,1753439443767,-2446.57,0.00022,7]
[374775125,1753439443777,-10324.18,0.00022,7]
[374775127,1753439443787,-3569.07,0.00022,7]
[374775129,1753439443797,-151.0,0.00022,2]
[374775131,1753439443807,-229.0,0.00022021,2]
[374775133,1753439443816,-506.136401,0.0002203,8]
[374775135,1753439443826,-858.6087701,0.00022082,2]
[374775137,1753439443836,-3191.46146358,0.00022184,2]
[374775139,1753439443846,-1482.51,0.00022191,2]
[374775141,1753439443855,-774.55,0.00022191,2]
[374775143,1753439443865,-489.67,0.00022191,2]
[374775145,1753439443874,-291.33,0.00022191,2]
[374775147,1753439443883,-500.0,0.00022251,2]
[374775149,1753439443893,-229.0,0.0002229,2]
[374775151,1753439443902,-1211.29,0.00022345,2]
[374775153,1753439443912,-229.0,0.00022374,2]
[374775155,1753439443922,-727.45970046,0.0002238,2]
[374775158,1753439443932,-500.0,0.0002239,2]
[374775159,1753439443941,-249.51129216,0.0002239,2]
[374775161,1753439443951,-500.0,0.0002239,2]
[374775163,1753439443960,-151.0,0.0002239,2]
[374775165,1753439443969,-239.87796106,0.0002239,2]
[374775167,1753439443979,-151.0,0.0002239,2]
[374775169,1753439443989,-151.0,0.0002239,2]
[374775171,1753439443999,-3191.46146358,0.0002239,2]
[374775173,1753439444008,-229.0,0.00022441,2]
[374775175,1753439444022,-1482.51,0.00022465,2]
[374775177,1753439444032,-774.55,0.00022465,2]
[374775179,1753439444041,-489.67,0.00022465,2]
[374775181,1753439444051,-1399.7,0.00022465,2]
[374775182,1753439444061,-500.0,0.00022473,2]
[374775183,1753439444071,-500.0,0.00022473,2]
[374775184,1753439444081,-150.0,0.00022473,2]
[374775185,1753439444092,-104041.88948531,0.0002248,2]
[374775186,1753439444227,-460.0,0.00019178,2]
[374775187,1753439444238,-151.0,0.0002193,7]
[374775188,1753439444248,-29061.54593269,0.0002248,2]
[374776758,1753439562399,992.87761979,0.00026027,120]
[374776763,1753440305462,308.23707,0.00013699,2]
[374776795,1753440632149,-300.0,0.00017798,2]
[374776796,1753440632159,-468.56290727,0.00017799,2]
[374776797,1753440632169,-37008.33832933,0.000178,2]
[374776798,1753440632179,-24900.0,0.00017989,2]
[374776800,1753440632188,-1564.7652653,0.00018017,2]
[374776802,1753440632198,-160.0,0.00018358,2]
[374776803,1753440632208,-160.0,0.00018358,2]
[374776804,1753440632217,-215.93003454,0.00018358,2]
[374776805,1753440632227,-476.88235691,0.00018358,2]
[374776806,1753440632237,-231.20877768,0.00018358,2]
[374776807,1753440632247,-160.0,0.00018358,2]
[374776808,1753440632256,-160.0,0.00018358,2]
[374776809,1753440632265,-160.0,0.00018358,2]
[374776810,1753440632275,-526.33361954,0.00018358,2]
[374776811,1753440632285,-12627.2413641,0.00018358,2]
[374776812,1753440632295,-160.0,0.00018358,2]
[374776813,1753440632304,-214.7599002,0.00018358,2]
[374776815,1753440632314,-160.0,0.00018358,2]
[374776817,1753440632324,-3233.53540341,0.000189,2]
[374776819,1753440632334,-772.47122714,0.000189,2]
[374776821,1753440632343,-1934.58716703,0.00019078,2]
[374776823,1753440632353,-3136.24456502,0.00019078,2]
[374776825,1753440632365,-772.47122704,0.00019141,2]
[374776827,1753440632374,-215.0738,0.00019147,2]
[374776829,1753440632384,-216.55,0.00019168,3]
[374776831,1753440632394,-649.65,0.00019168,3]
[374776832,1753440632404,-500.0,0.00019173,2]
[374776834,1753440632414,-500.0,0.00019173,2]
[374776836,1753440632424,-500.0,0.00019173,2]
[374776837,1753440632436,-500.0,0.00019173,2]
[374776838,1753440632447,-500.0,0.00019173,2]
[374776839,1753440632456,-500.0,0.00019173,2]
[374776840,1753440632466,-500.0,0.00019173,2]
[374776841,1753440632476,-500.0,0.00019173,2]
[374776842,1753440632486,-621.88425882,0.00019173,2]
[374776843,1753440632495,-500.0,0.00019173,2]
[374776844,1753440632505,-502.52398133,0.00019173,2]
[374776845,1753440632515,-500.0,0.00019173,2]
[374776846,1753440632525,-500.0,0.00019173,2]
[374776847,1753440632536,-504.11449161,0.00019173,2]
[374776848,1753440632546,-540.87434324,0.00019173,2]
[374776849,1753440632556,-502.23515975,0.00019173,2]
[374776850,1753440632565,-500.0,0.00019173,2]
[374776851,1753440632573,-500.0,0.00019173,2]
[374776852,1753440632582,-487.41818038,0.00019173,2]
[374776853,1753440632591,-500.0,0.00019173,2]
[374776854,1753440632601,-500.0,0.00019173,2]
[374776855,1753440632610,-435.62737133,0.00019173,2]
[374776856,1753440632620,-500.0,0.00019173,2]
[374776857,1753440632629,-553.08798781,0.00019173,2]
[374776858,1753440632639,-500.0,0.00019173,2]
[374776859,1753440632648,-330.1665206,0.00019173,2]
[374776860,1753440632658,-500.0,0.00019173,2]
[374776861,1753440632667,-500.0,0.00019173,2]
[374776862,1753440632677,-500.0,0.00019173,2]
[374776863,1753440632687,-500.0,0.00019173,2]
[374776864,1753440632696,-500.0,0.00019173,2]
[374776865,1753440632706,-211.64342884,0.00019173,2]
[374776882,1753440638081,-273.01647951,0.00017798,2]
[374776883,1753440638092,-241.1626047,0.00017798,2]
[374776884,1753440638101,-500.0,0.00017798,2]
[374776885,1753440638111,-500.0,0.00017798,2]
[374776886,1753440638121,-500.0,0.00017798,2]
[374776887,1753440638131,-154.95284083,0.00017798,2]
[374776888,1753440638140,-200.0,0.00017798,2]
[374776889,1753440638152,-500.0,0.00017798,2]
[374776890,1753440638161,-476.40423986,0.00017798,2]
[374776891,1753440638173,-406.94811532,0.00017798,2]
[374776892,1753440638182,-500.0,0.00017798,2]
[374776893,1753440638192,-500.0,0.00017798,2]
[374776894,1753440638202,-500.0,0.00017798,2]
[374776895,1753440638211,-288.35657116,0.00019173,2]
[374776896,1753440638220,-276.44239105,0.00019173,2]
[374776897,1753440638230,-500.0,0.00019173,2]
[374776898,1753440638240,-500.0,0.00019173,2]
[374776899,1753440638249,-502.90953708,0.00019173,2]
[374776900,1753440638258,-501.11374782,0.00019173,2]
[374776901,1753440638268,-500.0,0.00019173,2]
[374776902,1753440638277,-500.0,0.00019173,2]
[374776903,1753440638286,-502.7062514,0.00019173,2]
[374776904,1753440638297,-500.0,0.00019173,2]
[374776906,1753440638307,-500.0,0.00019173,2]
[374776908,1753440638316,-500.0,0.00019173,2]
[374776910,1753440638326,-500.0,0.00019173,2]
[374776911,1753440638335,-460.0,0.00019178,2]
[374776912,1753440638344,-372.02684409,0.00019178,2]
[374776913,1753440638356,-87.97315591,0.00019178,2]
[374776914,1753440638370,-463.05217999,0.00019178,2]
[374776915,1753440638379,-461.64054771,0.00019178,2]
[374776916,1753440638390,-460.0,0.00019178,2]
[374776917,1753440638399,-454.39652137,0.00019178,2]
[374776918,1753440638410,-460.0,0.00019178,2]
[374776919,1753440638420,-460.0,0.00019178,2]
[374776920,1753440638430,-460.0,0.00019178,2]